fUST/lending_fUST_20240813
["ID","MTS","AMOUNT","RATE_DAILY","PERIOD"]
[334742937,1723528254276,-500.0,0.00013972,2]
[334742938,1723528254285,-500.0,0.00013972,2]
[334742939,1723528254294,-500.0,0.00013972,2]
[334742940,1723528254303,-500.0,0.00013972,2]
[334742941,1723528254314,-1376.63,0.00013972,2]
[334742942,1723528254324,-200.0,0.00013973,2]
[334742943,1723528254333,-200.0,0.00013973,2]
[334742944,1723528254343,-200.0,0.00013973,2]
[334742945,1723528254353,-200.0,0.00013973,2]
[334742946,1723528254362,-200.0,0.00013973,2]
[334742947,1723528254371,-7700.73268672,0.00014,4]
[334742948,1723528254381,-153.0,0.00014,2]
[334742949,1723528254390,-153.0,0.00014,2]
[334742950,1723528254400,-153.0,0.00014,2]
[334742951,1723528254409,-153.0,0.00014,2]
[334742952,1723528254418,-153.0,0.00014,2]
[334742953,1723528254428,-153.0,0.00014,2]
[334742954,1723528254437,-153.0,0.00014,2]
[334742955,1723528254446,-154.0976678,0.000141,2]
[334742956,1723528254456,-14839.01682977,0.00014124,2]
[334742957,1723528254465,-501.0,0.000142,2]
[334742958,1723528254475,-500.0,0.00014235,2]
[334742959,1723528254484,-500.0,0.00014245,2]
[334742960,1723528254493,-500.0,0.00014245,2]
[334742961,1723528254503,-500.0,0.00014245,2]
[334742962,1723528254513,-500.0,0.00014245,2]
[334742963,1723528254522,-500.0,0.00014246,2]
[334742964,1723528254531,-179.66511161,0.00014246,2]
[334742965,1723528254541,-686.73,0.00014246,2]
[334742966,1723528254550,-500.0,0.00014246,2]
[334742967,1723528254560,-500.0,0.00014246,2]
[334742968,1723528254569,-500.0,0.00014246,2]
[334742969,1723528254579,-500.0,0.00014246,2]
[334742970,1723528254588,-500.0,0.00014246,2]
[334742971,1723528254598,-500.0,0.00014246,2]
[334742972,1723528254607,-742.44,0.00014246,2]
[334742973,1723528254616,-500.0,0.00014246,2]
[334742974,1723528254625,-500.0,0.00014246,2]
[334742975,1723528254634,-500.0,0.00014246,2]
[334742976,1723528254644,-500.0,0.00014246,2]
[334742977,1723528254653,-500.0,0.00014246,2]
[334742978,1723528254662,-501.14263449,0.00014246,2]
[334742979,1723528254671,-500.0,0.00014246,2]
[334742980,1723528254681,-507.14,0.00014246,2]
[334742981,1723528254690,-500.0,0.00014246,2]
[334742982,1723528254700,-500.0,0.00014246,2]
[334742983,1723528254709,-606.8,0.00014246,2]
[334742984,1723528254719,-500.0,0.00014246,2]
[334742985,1723528254728,-500.0,0.00014246,2]
[334742986,1723528254738,-500.0,0.00014246,2]
[334742987,1723528254749,-500.0,0.00014246,2]
[334742988,1723528254758,-500.0,0.00014246,2]
[334742989,1723528254767,-500.0,0.00014246,2]
[334742990,1723528254776,-537.87,0.00014246,2]
[334742991,1723528254786,-500.0,0.00014246,2]
[334742992,1723528254795,-500.0,0.00014246,2]
[334742993,1723528254804,-500.0,0.00014246,2]
[334742994,1723528254813,-504.60567424,0.00014246,2]
[334742995,1723528254822,-500.0,0.00014246,2]
[334742996,1723528254832,-500.0,0.00014246,2]
[334742997,1723528254841,-805.4,0.00014246,2]
[334742998,1723528254850,-500.0,0.00014246,2]
[334742999,1723528254860,-491.63,0.00014246,2]
[334743000,1723528254870,-500.0,0.00014246,2]
[334743001,1723528254879,-500.0,0.00014246,2]
[334743002,1723528254889,-500.0,0.00014246,2]
[334743003,1723528254898,-500.0,0.00014246,2]
[334743004,1723528254907,-541.92,0.00014246,2]
[334743005,1723528254918,-560.86,0.00014246,2]
[334743006,1723528254928,-508.89044468,0.00014246,2]
[334743007,1723528254938,-508.37097972,0.00014246,2]
[334743008,1723528254947,-500.0,0.00014246,2]
[334743009,1723528254957,-500.0,0.00014246,2]
[334743010,1723528254966,-500.0,0.00014246,2]
[334743011,1723528254975,-509.96240473,0.00014246,2]
[334743012,1723528254984,-500.0,0.00014246,2]
[334743013,1723528254994,-500.0,0.00014246,2]
[334743014,1723528255003,-500.0,0.00014246,2]
[334743015,1723528255013,-616.34,0.00014246,2]
[334743016,1723528255022,-500.0,0.00014246,2]
[334743017,1723528255032,-173.88809866,0.00014246,2]
[334743018,1723528255041,-500.0,0.00014246,2]
[334743019,1723528255050,-501.34584591,0.00014246,2]
[334743020,1723528255060,-501.81780332,0.00014246,2]
[334743021,1723528255069,-500.0,0.00014246,2]
[334743022,1723528255181,-858.14,0.00014246,2]
[334743023,1723528255193,-504.4672631,0.00014246,2]
[334743024,1723528255204,-500.0,0.00014246,2]
[334743025,1723528255217,-500.0,0.00014246,2]
[334743026,1723528255227,-503.73544608,0.00014246,2]
[334743027,1723528255237,-500.0,0.00014246,2]
[334743028,1723528255247,-500.0,0.00014246,2]
[334743029,1723528255257,-500.0,0.00014246,2]
[334743030,1723528255267,-500.0,0.00014246,2]
[334743031,1723528255279,-500.0,0.00014246,2]
[334743032,1723528255290,-500.0,0.00014246,2]
[334743033,1723528255299,-736.29,0.00014246,2]
[334743034,1723528255310,-500.0,0.00014246,2]
[334743035,1723528255321,-500.0,0.00014246,2]
[334743036,1723528255332,-500.0,0.00014246,2]
[334743037,1723528255343,-500.0,0.00014246,2]
[334743038,1723528255353,-500.0,0.00014246,2]
[334743039,1723528255364,-500.0,0.00014246,2]
[334743040,1723528255373,-507.37735056,0.00014246,2]
[334743041,1723528255382,-500.0,0.00014246,2]
[334743042,1723528255391,-500.0,0.00014246,2]
[334743043,1723528255401,-500.0,0.00014246,2]
[334743044,1723528255412,-500.0,0.00014246,2]
[334743045,1723528255424,-500.0,0.00014246,2]
[334743046,1723528255435,-500.0,0.00014246,2]
[334743047,1723528255446,-500.0,0.00014246,2]
[334743048,1723528255456,-500.0,0.00014246,2]
[334743049,1723528255466,-588.38,0.00014246,2]
[334743050,1723528255475,-500.0,0.00014246,2]
[334743051,1723528255485,-768.16,0.00014246,2]
[334743052,1723528255496,-525.24,0.00014246,2]
[334743053,1723528255505,-500.0,0.00014246,2]
[334743054,1723528255515,-876.74,0.00014246,2]
[334743055,1723528255526,-500.0,0.00014246,2]
[334743056,1723528255537,-861.35,0.00014246,2]
[334743057,1723528255547,-500.0,0.00014246,2]
[334743058,1723528255558,-500.0,0.00014246,2]
[334743059,1723528255567,-500.0,0.00014246,2]
[334743060,1723528255576,-692.66,0.00014246,2]
[334743061,1723528255588,-1178.89,0.00014246,2]
[334743062,1723528255599,-988.07,0.00014246,2]
[334743063,1723528255610,-500.0,0.00014246,2]
[334743064,1723528255621,-1131.39,0.00014246,2]
[334743065,1723528255631,-656.27,0.00014246,2]
[334743066,1723528255641,-918.67,0.00014246,2]
[334743067,1723528255652,-500.0,0.00014246,2]
[334743068,1723528255662,-500.0,0.00014246,2]
[334743069,1723528255671,-1317.03,0.00014246,2]
[334743070,1723528255681,-960.13,0.00014246,2]
[334743071,1723528255690,-500.0,0.00014246,2]
[334743072,1723528255701,-500.0,0.00014246,2]
[334743073,1723528255710,-500.0,0.00014246,2]
[334743074,1723528255723,-5634.47,0.00014246,2]
[334743075,1723528255733,-500.0,0.00014246,2]
[334743076,1723528255743,-500.0,0.00014246,2]
[334743077,1723528255754,-500.0,0.00014246,2]
[334743078,1723528255765,-500.0,0.00014246,2]
[334743079,1723528255774,-2786.95,0.00014246,2]
[334743080,1723528255783,-745.94,0.00014246,2]
[334743081,1723528255793,-500.0,0.00014246,2]
[334743082,1723528255803,-1275.19,0.00014246,2]
[334743083,1723528255813,-500.0,0.00014246,2]
[334743084,1723528255824,-500.0,0.00014246,2]
[334743085,1723528255834,-597.76,0.00014246,2]
[334743086,1723528255846,-1127.54,0.00014246,2]
[334743087,1723528255856,-500.0,0.00014246,2]
[334743088,1723528255867,-500.0,0.00014246,2]
[334743089,1723528255877,-500.0,0.00014246,2]
[334743090,1723528255887,-1054.34,0.00014246,2]
[334743091,1723528255896,-4063.87,0.00014246,2]
[334743092,1723528255905,-3904.44,0.00014246,2]
[334743093,1723528255914,-500.0,0.00014246,2]
[334743094,1723528255923,-597.51,0.00014246,2]
[334743095,1723528255933,-1869.86,0.00014246,2]
[334743096,1723528255942,-926.74,0.00014246,2]
[334743097,1723528255953,-500.0,0.00014246,2]
[334743098,1723528255962,-1000.64,0.00014246,2]
[334743099,1723528255971,-604.28,0.00014246,2]
[334743100,1723528255980,-1727.88,0.00014246,2]
[334743101,1723528255989,-1280.01,0.00014246,2]
[334743102,1723528255999,-500.0,0.00014246,2]
[334743103,1723528256008,-1180.87,0.00014246,2]
[334743104,1723528256017,-507.11683935,0.00014246,2]
[334743105,1723528256026,-771.71,0.00014246,2]
[334743106,1723528256036,-1364.07,0.00014246,2]
[334743107,1723528256045,-500.0,0.00014246,2]
[334743108,1723528256054,-500.0,0.00014246,2]
[334743109,1723528256063,-506.44736509,0.00014246,2]
[334743110,1723528256073,-3788.04,0.00014246,2]
[334743111,1723528256082,-1116.51,0.00014246,2]
[334743112,1723528256091,-500.0,0.00014246,2]
[334743113,1723528256100,-500.0,0.00014246,2]
[334743114,1723528256113,-500.0,0.00014246,2]
[334743115,1723528256122,-600.77,0.00014246,2]
[334743116,1723528256132,-500.0,0.00014246,2]
[334743117,1723528256141,-500.0,0.00014246,2]
[334743118,1723528256152,-800.87,0.00014246,2]
[334743119,1723528256162,-514.22688011,0.00014246,2]
[334743120,1723528256171,-500.0,0.00014246,2]
[334743121,1723528256181,-500.0,0.00014246,2]
[334743122,1723528256193,-500.0,0.00014246,2]
[334743123,1723528256203,-2565.68,0.00014246,2]
[334743124,1723528256212,-500.0,0.00014246,2]
[334743125,1723528256221,-500.0,0.00014246,2]
[334743126,1723528256230,-1364.68,0.00014246,2]
[334743127,1723528256239,-500.0,0.00014246,2]
[334743128,1723528256250,-500.0,0.00014246,2]
[334743129,1723528256259,-500.0,0.00014246,2]
[334743130,1723528256268,-1616.3,0.00014246,2]
[334743131,1723528256278,-500.0,0.00014246,2]
[334743132,1723528256288,-1295.46,0.00014246,2]
[334743133,1723528256299,-1371.68,0.00014246,2]
[334743134,1723528256308,-500.0,0.00014246,2]
[334743135,1723528256317,-842.94,0.00014246,2]
[334743136,1723528256327,-500.0,0.00014246,2]
[334743137,1723528256337,-537.09112232,0.00014246,2]
[334743138,1723528256346,-500.0,0.00014246,2]
[334743139,1723528256356,-586.24,0.00014246,2]
[334743140,1723528256365,-500.0,0.00014246,2]
[334743141,1723528256374,-500.0,0.00014246,2]
[334743142,1723528256383,-709.22,0.00014246,2]
[334743143,1723528256392,-635.04,0.00014246,2]
[334743144,1723528256402,-1649.1,0.00014246,2]
[334743145,1723528256411,-500.0,0.00014246,2]
[334743146,1723528256420,-1442.41,0.00014246,2]
[334743147,1723528256429,-500.0,0.00014246,2]
[334743148,1723528256438,-500.0,0.00014246,2]
[334743149,1723528256448,-669.84,0.00014246,2]
[334743150,1723528256457,-500.0,0.00014246,2]
[334743151,1723528256467,-504.90979449,0.00014246,2]
[334743152,1723528256477,-500.0,0.00014246,2]
[334743153,1723528256487,-1298.96,0.00014246,2]
[334743154,1723528256497,-630.11,0.00014246,2]
[334743155,1723528256506,-927.44,0.00014246,2]
[334743156,1723528256515,-5906.63,0.00014246,2]
[334743157,1723528256524,-500.0,0.00014246,2]
[334743158,1723528256534,-760.69,0.00014246,2]
[334743159,1723528256543,-500.0,0.00014246,2]
[334743160,1723528256552,-593.57865587,0.00014246,2]
[334743161,1723528256562,-500.0,0.00014246,2]
[334743162,1723528256572,-347.46826741,0.00014246,2]
[334743163,1723528256583,-500.0,0.00014246,2]
[334743164,1723528256593,-508.67,0.00014246,2]
[334743165,1723528256602,-2025.26,0.00014246,2]
[334743166,1723528256612,-1085.22,0.00014246,2]
[334743167,1723528256621,-806.94,0.00014246,2]
[334743168,1723528256631,-2737.51,0.00014246,2]
[334743169,1723528256641,-500.0,0.00014246,2]
[334743170,1723528256652,-500.0,0.00014246,2]
[334743171,1723528256662,-500.0,0.00014246,2]
[334743172,1723528256672,-500.0,0.00014246,2]
[334743173,1723528256684,-596.13,0.00014246,2]
[334743174,1723528256694,-228.49623559,0.00014246,2]
[334743175,1723528256705,-6282.86,0.00014246,2]
[334743176,1723528256714,-818.75,0.00014246,2]
[334743177,1723528256723,-500.0,0.00014246,2]
[334743178,1723528256733,-500.0,0.00014246,2]
[334743179,1723528256742,-500.0,0.00014246,2]
[334743180,1723528256752,-500.0,0.00014246,2]
[334743181,1723528256762,-1376.63,0.00014246,2]
[334743182,1723528256771,-473.138205,0.00014247,2]
[334743183,1723528256780,-159.233397,0.00014247,2]
[334743184,1723528256789,-469.01015893,0.00014386,2]
[334743185,1723528256798,-280.823,0.00014486,2]
[334743186,1723528256807,-640.842,0.00014486,2]
[334743187,1723528256817,-1413.0,0.00014486,2]
[334743188,1723528256826,-253.422,0.00014486,2]
[334743189,1723528256836,-150.398,0.00014486,2]
[334743190,1723528256847,-285.59539038,0.00014519,2]
[334743191,1723528256858,-500.0,0.0001452,2]
[334743192,1723528256867,-686.73,0.0001452,2]
[334743193,1723528256877,-500.0,0.0001452,2]
[334743194,1723528256886,-500.0,0.0001452,2]
[334743195,1723528256895,-500.0,0.0001452,2]
[334743196,1723528256904,-500.0,0.0001452,2]
[334743197,1723528256913,-500.0,0.0001452,2]
[334743198,1723528256923,-742.44,0.0001452,2]
[334743199,1723528256932,-500.0,0.0001452,2]
[334743200,1723528256941,-500.0,0.0001452,2]
[334743201,1723528256950,-500.0,0.0001452,2]
[334743202,1723528256959,-500.0,0.0001452,2]
[334743203,1723528256968,-507.14,0.0001452,2]
[334743204,1723528256977,-500.0,0.0001452,2]
[334743205,1723528256986,-606.8,0.0001452,2]
[334743206,1723528256997,-506.10342775,0.0001452,2]
[334743207,1723528257006,-500.0,0.0001452,2]
[334743208,1723528257016,-500.0,0.0001452,2]
[334743209,1723528257026,-500.0,0.0001452,2]
[334743210,1723528257035,-500.0,0.0001452,2]
[334743211,1723528257044,-537.87,0.0001452,2]
[334743212,1723528257054,-500.0,0.0001452,2]
[334743213,1723528257063,-500.0,0.0001452,2]
[334743214,1723528257072,-500.0,0.0001452,2]
[334743215,1723528257081,-805.4,0.0001452,2]
[334743216,1723528257091,-500.0,0.0001452,2]
[334743217,1723528257100,-284.84680017,0.0001452,2]
[334743218,1723528257112,-500.0,0.0001452,2]
[334743219,1723528257124,-541.92,0.0001452,2]
[334743220,1723528257136,-560.86,0.0001452,2]
[334743221,1723528257147,-500.0,0.0001452,2]
[334743222,1723528257159,-500.0,0.0001452,2]
[334743223,1723528257168,-500.0,0.0001452,2]
[334743224,1723528257177,-500.0,0.0001452,2]
[334743225,1723528257188,-500.0,0.0001452,2]
[334743226,1723528257198,-616.34,0.0001452,2]
[334743227,1723528257208,-500.0,0.0001452,2]
[334743228,1723528257218,-500.0,0.0001452,2]
[334743229,1723528257227,-858.14,0.0001452,2]
[334743230,1723528257237,-500.0,0.0001452,2]
[334743231,1723528257246,-500.0,0.0001452,2]
[334743232,1723528257257,-500.0,0.0001452,2]
[334743233,1723528257266,-500.0,0.0001452,2]
[334743234,1723528257277,-500.0,0.0001452,2]
[334743235,1723528257289,-500.0,0.0001452,2]
[334743236,1723528257299,-500.0,0.0001452,2]
[334743237,1723528257310,-500.0,0.0001452,2]
[334743238,1723528257321,-736.29,0.0001452,2]
[334743239,1723528257333,-500.0,0.0001452,2]
[334743240,1723528257344,-500.0,0.0001452,2]
[334743241,1723528257356,-500.0,0.0001452,2]
[334743242,1723528257366,-500.0,0.0001452,2]
[334743243,1723528257376,-500.0,0.0001452,2]
[334743244,1723528257385,-500.0,0.0001452,2]
[334743245,1723528257400,-500.0,0.0001452,2]
[334743246,1723528257411,-500.0,0.0001452,2]
[334743247,1723528257424,-500.0,0.0001452,2]
[334743248,1723528257434,-500.0,0.0001452,2]
[334743249,1723528257445,-500.0,0.0001452,2]
[334743250,1723528257455,-500.0,0.0001452,2]
[334743251,1723528257566,-588.38,0.0001452,2]
[334743252,1723528257576,-411.76147416,0.0001452,2]
[334743253,1723528257586,-768.16,0.0001452,2]
[334743254,1723528257596,-525.24,0.0001452,2]
[334743255,1723528257605,-500.0,0.0001452,2]
[334743256,1723528257615,-876.74,0.0001452,2]
[334743257,1723528257627,-500.0,0.0001452,2]
[334743258,1723528257638,-861.35,0.0001452,2]
[334743259,1723528257649,-500.0,0.0001452,2]
[334743260,1723528257658,-500.0,0.0001452,2]
[334743261,1723528257668,-692.66,0.0001452,2]
[334743262,1723528257678,-1178.89,0.0001452,2]
[334743263,1723528257688,-988.07,0.0001452,2]
[334743264,1723528257698,-284.30155513,0.0001452,2]
[334743265,1723528257707,-1131.39,0.0001452,2]
[334743266,1723528257717,-656.27,0.0001452,2]
[334743267,1723528257727,-918.67,0.0001452,2]
[334743268,1723528257736,-500.0,0.0001452,2]
[334743269,1723528257746,-500.0,0.0001452,2]
[334743270,1723528257755,-1317.03,0.0001452,2]
[334743271,1723528257765,-960.13,0.0001452,2]
[334743272,1723528257774,-500.0,0.0001452,2]
[334743273,1723528257784,-500.0,0.0001452,2]
[334743274,1723528257793,-500.0,0.0001452,2]
[334743275,1723528257803,-5634.47,0.0001452,2]
[334743276,1723528257812,-500.0,0.0001452,2]
[334743277,1723528257822,-500.0,0.0001452,2]
[334743278,1723528257831,-500.0,0.0001452,2]
[334743279,1723528257841,-500.0,0.0001452,2]
[334743280,1723528257851,-2786.95,0.0001452,2]
[334743281,1723528257862,-745.94,0.0001452,2]
[334743282,1723528257871,-500.0,0.0001452,2]
[334743283,1723528257880,-1275.19,0.0001452,2]
[334743284,1723528257890,-500.0,0.0001452,2]
[334743285,1723528257899,-500.0,0.0001452,2]
[334743286,1723528257909,-597.76,0.0001452,2]
[334743287,1723528257919,-1127.54,0.0001452,2]
[334743288,1723528257929,-500.0,0.0001452,2]
[334743289,1723528257938,-510.18680554,0.0001452,2]
[334743290,1723528257947,-500.0,0.0001452,2]
[334743291,1723528257957,-4063.87,0.0001452,2]
[334743292,1723528257966,-1054.34,0.0001452,2]
[334743293,1723528257975,-3904.44,0.0001452,2]
[334743294,1723528257984,-597.51,0.0001452,2]
[334743295,1723528257993,-1869.86,0.0001452,2]
[334743296,1723528258004,-926.74,0.0001452,2]
[334743297,1723528258013,-500.0,0.0001452,2]
[334743298,1723528258023,-1000.64,0.0001452,2]
[334743299,1723528258032,-604.28,0.0001452,2]
[334743300,1723528258041,-1727.88,0.0001452,2]
[334743301,1723528258052,-1280.01,0.0001452,2]
[334743302,1723528258062,-500.0,0.0001452,2]
[334743303,1723528258071,-1180.87,0.0001452,2]
[334743304,1723528258080,-771.71,0.0001452,2]
[334743305,1723528258090,-1364.07,0.0001452,2]
[334743306,1723528258100,-363.62833598,0.0001452,2]
[334743307,1723528258115,-500.0,0.0001452,2]
[334743308,1723528258125,-3788.04,0.0001452,2]
[334743309,1723528258137,-1116.51,0.0001452,2]
[334743310,1723528258147,-500.0,0.0001452,2]
[334743311,1723528258160,-500.0,0.0001452,2]
[334743312,1723528258169,-500.0,0.0001452,2]
[334743313,1723528258179,-600.77,0.0001452,2]
[334743314,1723528258191,-500.0,0.0001452,2]
[334743315,1723528258202,-503.4939137,0.0001452,2]
[334743316,1723528258212,-800.87,0.0001452,2]
[334743317,1723528258221,-500.0,0.0001452,2]
[334743318,1723528258232,-500.0,0.0001452,2]
[334743319,1723528258241,-500.0,0.0001452,2]
[334743320,1723528258252,-2565.68,0.0001452,2]
[334743321,1723528258261,-558.13731337,0.0001452,2]
[334743322,1723528258270,-500.0,0.0001452,2]
[334743323,1723528258279,-1364.68,0.0001452,2]
[334743324,1723528258288,-500.0,0.0001452,2]
[334743325,1723528258298,-500.0,0.0001452,2]
[334743326,1723528258307,-500.0,0.0001452,2]
[334743327,1723528258316,-1616.3,0.0001452,2]
[334743328,1723528258326,-500.0,0.0001452,2]
[334743329,1723528258335,-1295.46,0.0001452,2]
[334743330,1723528258345,-1371.68,0.0001452,2]
[334743331,1723528258354,-500.0,0.0001452,2]
[334743332,1723528258363,-842.94,0.0001452,2]
[334743333,1723528258374,-367.40460066,0.0001452,2]
[334743334,1723528258384,-500.0,0.0001452,2]
[334743335,1723528258393,-586.24,0.0001452,2]
[334743336,1723528258402,-500.0,0.0001452,2]
[334743337,1723528258412,-500.0,0.0001452,2]
[334743338,1723528258421,-709.22,0.0001452,2]
[334743339,1723528258430,-635.04,0.0001452,2]
[334743340,1723528258439,-1649.1,0.0001452,2]
[334743341,1723528258449,-500.0,0.0001452,2]
[334743342,1723528258458,-1442.41,0.0001452,2]
[334743343,1723528258467,-500.0,0.0001452,2]
[334743344,1723528258477,-500.0,0.0001452,2]
[334743345,1723528258487,-669.84,0.0001452,2]
[334743346,1723528258496,-282.29595842,0.0001452,2]
[334743347,1723528258506,-507.38404864,0.0001452,2]
[334743348,1723528258516,-1298.96,0.0001452,2]
[334743349,1723528258525,-630.11,0.0001452,2]
[334743350,1723528258534,-927.44,0.0001452,2]
[334743351,1723528258544,-5906.63,0.0001452,2]
[334743352,1723528258554,-532.94554107,0.0001452,2]
[334743353,1723528258563,-760.69,0.0001452,2]
[334743354,1723528258574,-507.7455186,0.0001452,2]
[334743355,1723528258585,-500.0,0.0001452,2]
[334743356,1723528258595,-500.0,0.0001452,2]
[334743357,1723528258605,-508.67,0.0001452,2]
[334743358,1723528258614,-2025.26,0.0001452,2]
[334743359,1723528258623,-1085.22,0.0001452,2]
[334743360,1723528258632,-806.94,0.0001452,2]
[334743361,1723528258642,-2737.51,0.0001452,2]
[334743362,1723528258653,-500.0,0.0001452,2]
[334743363,1723528258662,-500.0,0.0001452,2]
[334743364,1723528258671,-195.21056736,0.0001452,2]
[334743365,1723528258681,-596.13,0.0001452,2]
[334743366,1723528258690,-6282.86,0.0001452,2]
[334743367,1723528258699,-818.75,0.0001452,2]
[334743368,1723528258708,-160.41819334,0.0001452,2]
[334743369,1723528258719,-500.0,0.0001452,2]
[334743370,1723528258729,-500.0,0.0001452,2]
[334743371,1723528258739,-1376.63,0.0001452,2]
[334743372,1723528258751,-306.26353618,0.00014623,2]
[334743373,1723528258760,-1092.74671806,0.0001469,2]
[334743374,1723528258769,-687.00046972,0.0001469,2]
[334743375,1723528258779,-194.79981105,0.0001469,2]
[334743376,1723528258788,-154.82996095,0.0001469,2]
[334743377,1723528258797,-154.74467129,0.0001469,2]
[334743378,1723528258806,-154.74467129,0.0001469,2]
[334743379,1723528258816,-1364.96489753,0.0001469,2]
[334743380,1723528258825,-100000.0,0.0001469,2]
[334743381,1723528258835,-500.0,0.00014794,2]
[334743382,1723528258844,-686.73,0.00014794,2]
[334743383,1723528258853,-500.0,0.00014794,2]
[334743384,1723528258862,-625.05784409,0.00014794,2]
[334743385,1723528258873,-500.0,0.00014794,2]
[334743386,1723528258883,-500.0,0.00014794,2]
[334743387,1723528258893,-500.0,0.00014794,2]
[334743388,1723528258902,-742.44,0.00014794,2]
[334743389,1723528258911,-500.0,0.00014794,2]
[334743390,1723528258920,-500.0,0.00014794,2]
[334743391,1723528258930,-500.0,0.00014794,2]
[334743392,1723528258939,-500.0,0.00014794,2]
[334743393,1723528258951,-507.14,0.00014794,2]
[334743394,1723528258961,-500.0,0.00014794,2]
[334743395,1723528258970,-606.8,0.00014794,2]
[334743396,1723528258981,-369.68006595,0.00014794,2]
[334743397,1723528258991,-500.0,0.00014794,2]
[334743398,1723528259001,-500.0,0.00014794,2]
[334743399,1723528259011,-500.0,0.00014794,2]
[334743400,1723528259021,-537.87,0.00014794,2]
[334743401,1723528259031,-500.0,0.00014794,2]
[334743402,1723528259041,-500.0,0.00014794,2]
[334743403,1723528259051,-805.4,0.00014794,2]
[334743404,1723528259060,-500.0,0.00014794,2]
[334743405,1723528259070,-541.92,0.00014794,2]
[334743406,1723528259083,-560.86,0.00014794,2]
[334743407,1723528259093,-500.0,0.00014794,2]
[334743408,1723528259103,-500.0,0.00014794,2]
[334743409,1723528259117,-500.0,0.00014794,2]
[334743410,1723528259127,-497.95581423,0.00014794,2]
[334743411,1723528259137,-500.0,0.00014794,2]
[334743412,1723528259148,-616.34,0.00014794,2]
[334743413,1723528259159,-500.0,0.00014794,2]
[334743414,1723528259169,-500.0,0.00014794,2]
[334743415,1723528259180,-858.14,0.00014794,2]
[334743416,1723528259191,-500.0,0.00014794,2]
[334743417,1723528259202,-500.0,0.00014794,2]
[334743418,1723528259214,-500.0,0.00014794,2]
[334743419,1723528259223,-500.0,0.00014794,2]
[334743420,1723528259234,-500.0,0.00014794,2]
[334743421,1723528259243,-500.0,0.00014794,2]
[334743422,1723528259254,-500.0,0.00014794,2]
[334743423,1723528259263,-500.0,0.00014794,2]
[334743424,1723528259274,-736.29,0.00014794,2]
[334743425,1723528259285,-500.0,0.00014794,2]
[334743426,1723528259296,-504.75071887,0.00014794,2]
[334743427,1723528259306,-500.0,0.00014794,2]
[334743428,1723528259317,-607.99166983,0.00014794,2]
[334743429,1723528259327,-500.0,0.00014794,2]
[334743430,1723528259339,-500.0,0.00014794,2]
[334743431,1723528259351,-500.0,0.00014794,2]
[334743432,1723528259362,-500.0,0.00014794,2]
[334743433,1723528259373,-500.0,0.00014794,2]
[334743434,1723528259384,-500.0,0.00014794,2]
[334743435,1723528259394,-588.38,0.00014794,2]
[334743436,1723528259404,-768.16,0.00014794,2]